{"text_format":"1","workbook":"xlsx","n_sheets":3,"sheets":["Krycí list","Rekapitulace","Položky"],"not_rendered":{"charts":0,"images":0,"macros":0,"external_links":0,"defined_names":52,"comments":0,"pivot_tables":0},"unopened":[],"bounds":{"document_bytes":16777216,"sheet_cells":100000,"rows_first":2000,"rows_last":500,"rows_between":2000,"halvings":0,"cell_chars":16384,"cell_head_chars":4096},"cells_cut":0,"cells_raw":0,"read":"whole","date_system":"1900"}

{"sheet":"Krycí list","index":0,"n_rows":45,"n_cols":8,"rows_kept":45,"cut":false,"hidden":false,"merged":[[36,1,44,6],[7,2,7,4],[8,2,8,4],[9,2,9,4],[10,2,10,4],[11,2,11,4],[22,0,22,1],[29,5,29,6],[30,5,30,6],[31,5,31,6],[32,5,32,6],[33,5,33,6],[51,1,51,6],[52,1,52,6],[53,1,53,6],[54,1,54,6],[45,1,45,6],[46,1,46,6],[47,1,47,6],[48,1,48,6],[49,1,49,6],[50,1,50,6]]}
["POLOŽKOVÝ ROZPOČET"]
["Rozpočet",null,{"$f":"Rekapitulace!H1","v":"3279/01.1"},{"$f":"Rekapitulace!G2","v":"Odstranění části stávající stavby"},null,"JKSO ","801.3"]
[]
["Objekt",null,"Název objektu",null,null,"SKP "]
["01",null,"Modernizace dílenského areálu",null,null,"Měrná jednotka","m3"]
["Stavba",null,"Název stavby",null,null,"Počet jednotek",{"$f":"SUM(Položky!E41+Položky!E52+Položky!E64+Položky!E66)","v":7485.3274999999994}]
["3279",null,"Modernizace dílenského areálu SŠTŘ Nový Bydžov - Hlušice",null,null,"Náklady na m.j.",{"$f":"IF(PocetMJ=0,,ROUND((F30+F32)/PocetMJ,1))","v":0}]
["Projektant",null,"Jiří Černý",null,null,"Typ rozpočtu"]
["Zpracovatel projektu",null,{"$f":"Projektant","v":"Jiří Černý"}]
["Objednatel",null,"Střední škola technická a řemeslná"]
["Dodavatel",null,null,null,null,"Zakázkové číslo ","1679/2021"]
["Rozpočtoval",null,null,null,null,"Počet listů",5]
["ROZPOČTOVÉ NÁKLADY"]
["Základní rozpočtové náklady",null,null,"Ostatní náklady stavby"]
[null,"HSV celkem",{"$f":"HSV","v":0},{"$f":"Rekapitulace!A20","v":"Zařízení staveniště"},null,null,{"$f":"Rekapitulace!I20","v":0}]
["Z","PSV celkem",{"$f":"PSV","v":0},{"$f":"Rekapitulace!A21","v":"Provoz investora"},null,null,{"$f":"Rekapitulace!I21","v":0}]
["R","M práce celkem",{"$f":"Mont","v":0},{"$f":"Rekapitulace!A22","v":"Kompletační činnost (IČD)"},null,null,{"$f":"Rekapitulace!I22","v":0}]
["N","M dodávky celkem",{"$f":"Dodavka","v":0},{"$f":"Rekapitulace!A23","v":"Vytýčení podz. inženýrských sítí"},null,null,{"$f":"Rekapitulace!I23","v":0}]
["ZRN celkem",null,{"$f":"SUM(C15:C18)","v":0},{"$f":"Rekapitulace!A24","v":"Dokumentace skutečného provedení"},null,null,{"$f":"Rekapitulace!I24","v":0}]
[]
["HZS",null,{"$f":"HZS","v":0}]
["ZRN+HZS",null,{"$f":"C19+C21","v":0}]
["ZRN+ost.náklady+HZS",null,{"$f":"C22+G23","v":0},"Ostatní náklady celkem",null,null,{"$f":"VRN","v":0}]
["Vypracoval",null,null,"Za zhotovitele",null,"Za objednatele"]
["Jméno :",null,null,"Jméno :",null,"Jméno :"]
["Datum :",null,null,"Datum :",null,"Datum :"]
[]
["Podpis :",null,null,"Podpis:",null,"Podpis:"]
[]
["Základ pro DPH",null,21,"%  ",null,{"$f":"C23-F32","v":0}]
["DPH",null,{"$f":"SazbaDPH1","v":21},"% ",null,{"$f":"ROUND(PRODUCT(F30,C31/100),0)","v":0}]
["Základ pro DPH",null,0,"% ",null,0]
["DPH",null,{"$f":"SazbaDPH2","v":0},"% ",null,{"$f":"ROUND(PRODUCT(F32,C33/100),0)","v":0}]
["CENA ZA OBJEKT CELKEM",null,null,null,null,{"$f":"ROUND(SUM(F30:F33),0)","v":0}]
[]
["Poznámka :",null,null,null,null,null,null," "]
[null,null,null,null,null,null,null," "]
[null,null,null,null,null,null,null," "]
[null,null,null,null,null,null,null," "]
[null,null,null,null,null,null,null," "]
[null,null,null,null,null,null,null," "]
[null,null,null,null,null,null,null," "]
[null,null,null,null,null,null,null," "]
[null,null,null,null,null,null,null," "]
[null,null,null,null,null,null,null," "]

{"sheet":"Rekapitulace","index":1,"n_rows":25,"n_cols":53,"rows_kept":25,"cut":false,"hidden":false,"merged":[[0,0,0,1],[1,0,1,1],[1,6,1,8],[24,7,24,8]]}
["Stavba :",null,{"$f":"CONCATENATE(cislostavby,\" \",nazevstavby)","v":"3279 Modernizace dílenského areálu SŠTŘ Nový Bydžov - Hlušice"},null,null,null,"Rozpočet :","3279/01.1"]
["Objekt :",null,{"$f":"CONCATENATE(cisloobjektu,\" \",nazevobjektu)","v":"01 Modernizace dílenského areálu"},null,null,null,"Odstranění části stávající stavby"]
[]
["REKAPITULACE  STAVEBNÍCH  DÍLŮ"]
[]
[null,"Stavební díl",null,null,"HSV","PSV","Dodávka","Montáž","HZS"]
[{"$f":"Položky!B7","v":"1"},{"$f":"Položky!C7","v":"Zemní práce"},null,null,{"$f":"Položky!BA22","v":0},{"$f":"Položky!BB22","v":0},{"$f":"Položky!BC22","v":0},{"$f":"Položky!BD22","v":0},{"$f":"Položky!BE22","v":0}]
[{"$f":"Položky!B23","v":"5"},{"$f":"Položky!C23","v":"Komunikace"},null,null,{"$f":"Položky!BA35","v":0},{"$f":"Položky!BB35","v":0},{"$f":"Položky!BC35","v":0},{"$f":"Položky!BD35","v":0},{"$f":"Položky!BE35","v":0}]
[{"$f":"Položky!B36","v":"9"},{"$f":"Položky!C36","v":"Ostatní konstrukce, bourání"},null,null,{"$f":"Položky!BA39","v":0},{"$f":"Položky!BB39","v":0},{"$f":"Položky!BC39","v":0},{"$f":"Položky!BD39","v":0},{"$f":"Položky!BE39","v":0}]
[{"$f":"Položky!B40","v":"96"},{"$f":"Položky!C40","v":"Bourání konstrukcí"},null,null,{"$f":"Položky!BA50","v":0},{"$f":"Položky!BB50","v":0},{"$f":"Položky!BC50","v":0},{"$f":"Položky!BD50","v":0},{"$f":"Položky!BE50","v":0}]
[{"$f":"Položky!B51","v":"98"},{"$f":"Položky!C51","v":"Demolice"},null,null,{"$f":"Položky!BA69","v":0},{"$f":"Položky!BB69","v":0},{"$f":"Položky!BC69","v":0},{"$f":"Položky!BD69","v":0},{"$f":"Položky!BE69","v":0}]
[{"$f":"Položky!B70","v":"99"},{"$f":"Položky!C70","v":"Staveništní přesun hmot"},null,null,{"$f":"Položky!BA75","v":0},{"$f":"Položky!BB75","v":0},{"$f":"Položky!BC75","v":0},{"$f":"Položky!BD75","v":0},{"$f":"Položky!BE75","v":0}]
[{"$f":"Položky!B76","v":"766"},{"$f":"Položky!C76","v":"Konstrukce truhlářské"},null,null,{"$f":"Položky!BA124","v":0},{"$f":"Položky!BB124","v":0},{"$f":"Položky!BC124","v":0},{"$f":"Položky!BD124","v":0},{"$f":"Položky!BE124","v":0}]
[{"$f":"Položky!B125","v":"D96"},{"$f":"Položky!C125","v":"Přesuny suti a vybouraných hmot"},null,null,{"$f":"Položky!BA131","v":0},{"$f":"Položky!BB131","v":0},{"$f":"Položky!BC131","v":0},{"$f":"Položky!BD131","v":0},{"$f":"Položky!BE131","v":0}]
[null,"CELKEM  OBJEKT",null,null,{"$f":"SUM(E7:E14)","v":0},{"$f":"SUM(F7:F14)","v":0},{"$f":"SUM(G7:G14)","v":0},{"$f":"SUM(H7:H14)","v":0},{"$f":"SUM(I7:I14)","v":0}]
[]
["OSTATNÍ NÁKLADY STAVBY"]
[]
["Název ONS",null,null,null,"Kč",null,null,null,"Kč"]
["Zařízení staveniště",null,null,null,null,null,null,null,{"$f":"E20+F20*G20/100","v":0},null,null,null,null,null,null,null,null,null,null,null,null,null,null,null,null,null,null,null,null,null,null,null,null,null,null,null,null,null,null,null,null,null,null,null,null,null,null,null,null,null,null,null,2]
["Provoz investora",null,null,null,null,null,null,null,{"$f":"E21+F21*G21/100","v":0},null,null,null,null,null,null,null,null,null,null,null,null,null,null,null,null,null,null,null,null,null,null,null,null,null,null,null,null,null,null,null,null,null,null,null,null,null,null,null,null,null,null,null,1]
["Kompletační činnost (IČD)",null,null,null,null,null,null,null,{"$f":"E22+F22*G22/100","v":0},null,null,null,null,null,null,null,null,null,null,null,null,null,null,null,null,null,null,null,null,null,null,null,null,null,null,null,null,null,null,null,null,null,null,null,null,null,null,null,null,null,null,null,2]
["Vytýčení podz. inženýrských sítí",null,null,null,null,null,null,null,{"$f":"E23+F23*G23/100","v":0},null,null,null,null,null,null,null,null,null,null,null,null,null,null,null,null,null,null,null,null,null,null,null,null,null,null,null,null,null,null,null,null,null,null,null,null,null,null,null,null,null,null,null,0]
["Dokumentace skutečného provedení",null,null,null,null,null,null,null,{"$f":"E24+F24*G24/100","v":0},null,null,null,null,null,null,null,null,null,null,null,null,null,null,null,null,null,null,null,null,null,null,null,null,null,null,null,null,null,null,null,null,null,null,null,null,null,null,null,null,null,null,null,0]
[null,"CELKEM ONS",null,null,null,null,null,{"$f":"SUM(I20:I24)","v":0}]

{"sheet":"Položky","index":2,"n_rows":131,"n_cols":104,"rows_kept":131,"cut":false,"hidden":false,"merged":[[10,2,10,6],[11,2,11,3],[13,2,13,3],[0,0,0,6],[2,0,2,1],[3,0,3,1],[3,4,3,6],[8,2,8,3],[29,2,29,3],[30,2,30,3],[31,2,31,3],[33,2,33,3],[14,2,14,3],[16,2,16,3],[17,2,17,3],[19,2,19,3],[20,2,20,3],[24,2,24,3],[25,2,25,3],[26,2,26,3],[27,2,27,3],[28,2,28,3],[55,2,55,3],[56,2,56,3],[57,2,57,3],[41,2,41,3],[42,2,42,3],[43,2,43,3],[44,2,44,3],[45,2,45,3],[46,2,46,3],[47,2,47,3],[48,2,48,3],[52,2,52,6],[53,2,53,6],[54,2,54,3],[66,2,66,3],[67,2,67,3],[72,2,72,6],[73,2,73,6],[58,2,58,3],[59,2,59,3],[60,2,60,3],[61,2,61,3],[62,2,62,3],[64,2,64,3],[90,2,90,3],[77,2,77,6],[78,2,78,3],[79,2,79,3],[80,2,80,3],[81,2,81,3],[82,2,82,3],[83,2,83,3],[84,2,84,3],[85,2,85,3],[86,2,86,3],[87,2,87,3],[88,2,88,3],[89,2,89,3],[106,2,106,3],[92,2,92,3],[93,2,93,3],[94,2,94,3],[95,2,95,3],[97,2,97,6],[98,2,98,3],[99,2,99,3],[100,2,100,3],[102,2,102,6],[103,2,103,3],[105,2,105,6],[117,2,117,3],[118,2,118,3],[119,2,119,3],[107,2,107,3],[109,2,109,3],[110,2,110,3],[111,2,111,3],[113,2,113,6],[116,2,116,6]]}
["Položkový rozpočet "]
[]
["Stavba :",null,{"$f":"CONCATENATE(cislostavby,\" \",nazevstavby)","v":"3279 Modernizace dílenského areálu SŠTŘ Nový Bydžov - Hlušice"},null,"Rozpočet:",{"$f":"Rekapitulace!H1","v":"3279/01.1"}]
["Objekt :",null,{"$f":"CONCATENATE(cisloobjektu,\" \",nazevobjektu)","v":"01 Modernizace dílenského areálu"},null,{"$f":"Rekapitulace!G2","v":"Odstranění části stávající stavby"}]
[]
["P.č.","Číslo položky","Název položky","MJ","množství","cena / MJ","celkem (Kč)"]
["Díl:","1","Zemní práce",null,null,null,null,null,null,null,null,null,null,null,1]
[1,"122201101R00","Odkopávky nezapažené v hor. 3 do 100 m3 ","m3",20.0059,null,{"$f":"E8*F8","v":0},null,null,null,null,null,null,null,2,null,null,null,null,null,null,null,null,null,null,null,1,1,1,null,null,null,null,null,null,null,null,null,null,null,null,null,null,null,null,null,null,null,null,null,null,1,{"$f":"IF(AZ8=1,G8,0)","v":0},{"$f":"IF(AZ8=2,G8,0)","v":0},{"$f":"IF(AZ8=3,G8,0)","v":0},{"$f":"IF(AZ8=4,G8,0)","v":0},{"$f":"IF(AZ8=5,G8,0)","v":0},null,null,null,null,null,null,null,null,null,null,null,null,null,null,null,null,null,null,null,null,null,1,1,null,null,null,null,null,null,null,null,null,null,null,null,null,null,null,null,null,null,null,null,null,null,null,0]
[null,null,"Prostor mezi stáv. a sousedním objektem:(3,91*6,22-1,10^2*Pi)*(0,88+1,07)/2",null,20.0059,null,null,null,null,null,null,null,"Prostor mezi stáv. a sousedním objektem:(3,91*6,22-1,10^2*Pi)*(0,88+1,07)/2"]
[2,"139711101RT3","Vykopávka v uzavřených prostorách v hor.1-4 hornina 3","m3",149.59219999999999,null,{"$f":"E10*F10","v":0},null,null,null,null,null,null,null,2,null,null,null,null,null,null,null,null,null,null,null,1,1,1,null,null,null,null,null,null,null,null,null,null,null,null,null,null,null,null,null,null,null,null,null,null,1,{"$f":"IF(AZ10=1,G10,0)","v":0},{"$f":"IF(AZ10=2,G10,0)","v":0},{"$f":"IF(AZ10=3,G10,0)","v":0},{"$f":"IF(AZ10=4,G10,0)","v":0},{"$f":"IF(AZ10=5,G10,0)","v":0},null,null,null,null,null,null,null,null,null,null,null,null,null,null,null,null,null,null,null,null,null,1,1,null,null,null,null,null,null,null,null,null,null,null,null,null,null,null,null,null,null,null,null,null,null,null,0]
[null,null,"Výkopy v přední části stávajícího objektu pro následné bourání základů, patek a jímek.",null,null,null,null,null,null,null,null,"Výkopy v přední části stávajícího objektu pro následné bourání základů, patek a jímek.",null,null,3]
[null,null,"Prostor mezi stávajícími základy a jímkami z 80%:22,10*8,02*(1,43+0,68)/2*0,8",null,149.59219999999999,null,null,null,null,null,null,null,"Prostor mezi stávajícími základy a jímkami z 80%:22,10*8,02*(1,43+0,68)/2*0,8"]
[3,"162701105RRR","Vodorovné přemístění výkopku z hor.1-4 na skládku zhotovitele","m3",169.59809999999999,null,{"$f":"E13*F13","v":0},null,null,null,null,null,null,null,2,null,null,null,null,null,null,null,null,null,null,null,1,1,1,null,null,null,null,null,null,null,null,null,null,null,null,null,null,null,null,null,null,null,null,null,null,1,{"$f":"IF(AZ13=1,G13,0)","v":0},{"$f":"IF(AZ13=2,G13,0)","v":0},{"$f":"IF(AZ13=3,G13,0)","v":0},{"$f":"IF(AZ13=4,G13,0)","v":0},{"$f":"IF(AZ13=5,G13,0)","v":0},null,null,null,null,null,null,null,null,null,null,null,null,null,null,null,null,null,null,null,null,null,1,1,null,null,null,null,null,null,null,null,null,null,null,null,null,null,null,null,null,null,null,null,null,null,null,0]
[null,null,"Prostor mezi stávajícími základy a jímkami z 80%:22,10*8,02*(1,43+0,68)/2*0,8",null,149.59219999999999,null,null,null,null,null,null,null,"Prostor mezi stávajícími základy a jímkami z 80%:22,10*8,02*(1,43+0,68)/2*0,8"]
[null,null,"Prostor mezi stáv. a sousedním objektem:(3,91*6,22-1,10^2*Pi)*(0,88+1,07)/2",null,20.0059,null,null,null,null,null,null,null,"Prostor mezi stáv. a sousedním objektem:(3,91*6,22-1,10^2*Pi)*(0,88+1,07)/2"]
[4,"181101102R00","Úprava pláně v zářezech v hor. 1-4, se zhutněním ","m2",197.76089999999999,null,{"$f":"E16*F16","v":0},null,null,null,null,null,null,null,2,null,null,null,null,null,null,null,null,null,null,null,1,1,1,null,null,null,null,null,null,null,null,null,null,null,null,null,null,null,null,null,null,null,null,null,null,1,{"$f":"IF(AZ16=1,G16,0)","v":0},{"$f":"IF(AZ16=2,G16,0)","v":0},{"$f":"IF(AZ16=3,G16,0)","v":0},{"$f":"IF(AZ16=4,G16,0)","v":0},{"$f":"IF(AZ16=5,G16,0)","v":0},null,null,null,null,null,null,null,null,null,null,null,null,null,null,null,null,null,null,null,null,null,1,1,null,null,null,null,null,null,null,null,null,null,null,null,null,null,null,null,null,null,null,null,null,null,null,0]
[null,null,"Prostor mezi stáv. a sousedním objektem:3,91*6,22-1,10^2*Pi",null,20.518899999999999,null,null,null,null,null,null,null,"Prostor mezi stáv. a sousedním objektem:3,91*6,22-1,10^2*Pi"]
[null,null,"Prostor mezi stávajícími základy a jímkami z 80%:22,10*8,02",null,177.24199999999999,null,null,null,null,null,null,null,"Prostor mezi stávajícími základy a jímkami z 80%:22,10*8,02"]
[5,"199000002R00","Poplatek za skládku horniny 1- 4 ","m3",169.59809999999999,null,{"$f":"E19*F19","v":0},null,null,null,null,null,null,null,2,null,null,null,null,null,null,null,null,null,null,null,1,1,1,null,null,null,null,null,null,null,null,null,null,null,null,null,null,null,null,null,null,null,null,null,null,1,{"$f":"IF(AZ19=1,G19,0)","v":0},{"$f":"IF(AZ19=2,G19,0)","v":0},{"$f":"IF(AZ19=3,G19,0)","v":0},{"$f":"IF(AZ19=4,G19,0)","v":0},{"$f":"IF(AZ19=5,G19,0)","v":0},null,null,null,null,null,null,null,null,null,null,null,null,null,null,null,null,null,null,null,null,null,1,1,null,null,null,null,null,null,null,null,null,null,null,null,null,null,null,null,null,null,null,null,null,null,null,0]
[null,null,"Prostor mezi stávajícími základy a jímkami z 80%:22,10*8,02*(1,43+0,68)/2*0,8",null,149.59219999999999,null,null,null,null,null,null,null,"Prostor mezi stávajícími základy a jímkami z 80%:22,10*8,02*(1,43+0,68)/2*0,8"]
[null,null,"Prostor mezi stáv. a sousedním objektem:(3,91*6,22-1,10^2*Pi)*(0,88+1,07)/2",null,20.0059,null,null,null,null,null,null,null,"Prostor mezi stáv. a sousedním objektem:(3,91*6,22-1,10^2*Pi)*(0,88+1,07)/2"]
[null,"Celkem za",{"$f":"CONCATENATE(B7,\" \",C7)","v":"1 Zemní práce"},null,null,null,{"$f":"SUM(G7:G21)","v":0},null,null,null,null,null,null,null,4,null,null,null,null,null,null,null,null,null,null,null,null,null,null,null,null,null,null,null,null,null,null,null,null,null,null,null,null,null,null,null,null,null,null,null,null,null,{"$f":"SUM(BA7:BA21)","v":0},{"$f":"SUM(BB7:BB21)","v":0},{"$f":"SUM(BC7:BC21)","v":0},{"$f":"SUM(BD7:BD21)","v":0},{"$f":"SUM(BE7:BE21)","v":0}]
["Díl:","5","Komunikace",null,null,null,null,null,null,null,null,null,null,null,1]
[6,"564851111RT2","Podklad ze štěrkodrti po zhutnění tloušťky 15 cm štěrkodrť frakce 0-32 mm","m2",1112.6718000000001,null,{"$f":"E24*F24","v":0},null,null,null,null,null,null,null,2,null,null,null,null,null,null,null,null,null,null,null,1,1,1,null,null,null,null,null,null,null,null,null,null,null,null,null,null,null,null,null,null,null,null,null,null,1,{"$f":"IF(AZ24=1,G24,0)","v":0},{"$f":"IF(AZ24=2,G24,0)","v":0},{"$f":"IF(AZ24=3,G24,0)","v":0},{"$f":"IF(AZ24=4,G24,0)","v":0},{"$f":"IF(AZ24=5,G24,0)","v":0},null,null,null,null,null,null,null,null,null,null,null,null,null,null,null,null,null,null,null,null,null,1,1,null,null,null,null,null,null,null,null,null,null,null,null,null,null,null,null,null,null,null,null,null,null,null,0.378]
[null,null,"Sávající betonové podlahy včetně krycích betonových desek kanálů a jímek:21,88*6,22",null,136.09360000000001,null,null,null,null,null,null,null,"Sávající betonové podlahy včetně krycích betonových desek kanálů a jímek:21,88*6,22"]
[null,null,"2,47*1,33",null,3.2850999999999999,null,null,null,null,null,null,null,"2,47*1,33"]
[null,null,"16,20*3,44",null,55.728000000000002,null,null,null,null,null,null,null,"16,20*3,44"]
[null,null,"(32,51-16,20)*3,44",null,56.106400000000001,null,null,null,null,null,null,null,"(32,51-16,20)*3,44"]
[null,null,"6,07*2,64",null,16.024799999999999,null,null,null,null,null,null,null,"6,07*2,64"]
[null,null,"9,62*13,38",null,128.71559999999999,null,null,null,null,null,null,null,"9,62*13,38"]
[null,null,"9,62*72,37",null,696.19939999999997,null,null,null,null,null,null,null,"9,62*72,37"]
[null,null,"Prostor mezi stáv. a sousedním objektem:3,91*6,22-1,10^2*Pi",null,20.518899999999999,null,null,null,null,null,null,null,"Prostor mezi stáv. a sousedním objektem:3,91*6,22-1,10^2*Pi"]
[7,"566904111R00","Vyspravení podkladu po překopech kam.obal.asfaltem ","t",9.0563000000000002,null,{"$f":"E33*F33","v":0},null,null,null,null,null,null,null,2,null,null,null,null,null,null,null,null,null,null,null,1,1,1,null,null,null,null,null,null,null,null,null,null,null,null,null,null,null,null,null,null,null,null,null,null,1,{"$f":"IF(AZ33=1,G33,0)","v":0},{"$f":"IF(AZ33=2,G33,0)","v":0},{"$f":"IF(AZ33=3,G33,0)","v":0},{"$f":"IF(AZ33=4,G33,0)","v":0},{"$f":"IF(AZ33=5,G33,0)","v":0},null,null,null,null,null,null,null,null,null,null,null,null,null,null,null,null,null,null,null,null,null,1,1,null,null,null,null,null,null,null,null,null,null,null,null,null,null,null,null,null,null,null,null,null,null,null,1]
[null,null,"Prostor před vjezov. vraty:11,50*2,10*0,15*2,5",null,9.0563000000000002,null,null,null,null,null,null,null,"Prostor před vjezov. vraty:11,50*2,10*0,15*2,5"]
[null,"Celkem za",{"$f":"CONCATENATE(B23,\" \",C23)","v":"5 Komunikace"},null,null,null,{"$f":"SUM(G23:G34)","v":0},null,null,null,null,null,null,null,4,null,null,null,null,null,null,null,null,null,null,null,null,null,null,null,null,null,null,null,null,null,null,null,null,null,null,null,null,null,null,null,null,null,null,null,null,null,{"$f":"SUM(BA23:BA34)","v":0},{"$f":"SUM(BB23:BB34)","v":0},{"$f":"SUM(BC23:BC34)","v":0},{"$f":"SUM(BD23:BD34)","v":0},{"$f":"SUM(BE23:BE34)","v":0}]
["Díl:","9","Ostatní konstrukce, bourání",null,null,null,null,null,null,null,null,null,null,null,1]
[8,"900 90-0001.RRR","Provizorní ochrana a sanace HUP a rozvodné elektrické skříně (zabednění objektu)","soubor",1,null,{"$f":"E37*F37","v":0},null,null,null,null,null,null,null,2,null,null,null,null,null,null,null,null,null,null,null,11,3,35,null,null,null,null,null,null,null,null,null,null,null,null,null,null,null,null,null,null,null,null,null,null,1,{"$f":"IF(AZ37=1,G37,0)","v":0},{"$f":"IF(AZ37=2,G37,0)","v":0},{"$f":"IF(AZ37=3,G37,0)","v":0},{"$f":"IF(AZ37=4,G37,0)","v":0},{"$f":"IF(AZ37=5,G37,0)","v":0},null,null,null,null,null,null,null,null,null,null,null,null,null,null,null,null,null,null,null,null,null,11,3,null,null,null,null,null,null,null,null,null,null,null,null,null,null,null,null,null,null,null,null,null,null,null,0]
[9,"900 90-0001RRR","Odpojení přípojek (elektro, plyn, telefon,CETIN....)","soubor",1,null,{"$f":"E38*F38","v":0},null,null,null,null,null,null,null,2,null,null,null,null,null,null,null,null,null,null,null,11,3,36,null,null,null,null,null,null,null,null,null,null,null,null,null,null,null,null,null,null,null,null,null,null,1,{"$f":"IF(AZ38=1,G38,0)","v":0},{"$f":"IF(AZ38=2,G38,0)","v":0},{"$f":"IF(AZ38=3,G38,0)","v":0},{"$f":"IF(AZ38=4,G38,0)","v":0},{"$f":"IF(AZ38=5,G38,0)","v":0},null,null,null,null,null,null,null,null,null,null,null,null,null,null,null,null,null,null,null,null,null,11,3,null,null,null,null,null,null,null,null,null,null,null,null,null,null,null,null,null,null,null,null,null,null,null,0]
[null,"Celkem za",{"$f":"CONCATENATE(B36,\" \",C36)","v":"9 Ostatní konstrukce, bourání"},null,null,null,{"$f":"SUM(G36:G38)","v":0},null,null,null,null,null,null,null,4,null,null,null,null,null,null,null,null,null,null,null,null,null,null,null,null,null,null,null,null,null,null,null,null,null,null,null,null,null,null,null,null,null,null,null,null,null,{"$f":"SUM(BA36:BA38)","v":0},{"$f":"SUM(BB36:BB38)","v":0},{"$f":"SUM(BC36:BC38)","v":0},{"$f":"SUM(BD36:BD38)","v":0},{"$f":"SUM(BE36:BE38)","v":0}]
["Díl:","96","Bourání konstrukcí",null,null,null,null,null,null,null,null,null,null,null,1]
[10,"965042241R00","Bourání mazanin betonových tl. nad 10 cm, nad 4 m2 ","m3",203.6095,null,{"$f":"E41*F41","v":0},null,null,null,null,null,null,null,2,null,null,null,null,null,null,null,null,null,null,null,1,1,1,null,null,null,null,null,null,null,null,null,null,null,null,null,null,null,null,null,null,null,null,null,null,1,{"$f":"IF(AZ41=1,G41,0)","v":0},{"$f":"IF(AZ41=2,G41,0)","v":0},{"$f":"IF(AZ41=3,G41,0)","v":0},{"$f":"IF(AZ41=4,G41,0)","v":0},{"$f":"IF(AZ41=5,G41,0)","v":0},null,null,null,null,null,null,null,null,null,null,null,null,null,null,null,null,null,null,null,null,null,1,1,null,null,null,null,null,null,null,null,null,null,null,null,null,null,null,null,null,null,null,null,null,null,null,0]
[null,null,"Sávající betonové podlahy včetně krycích betonových desek kanálů a jímek:21,88*6,22*0,25",null,34.023400000000002,null,null,null,null,null,null,null,"Sávající betonové podlahy včetně krycích betonových desek kanálů a jímek:21,88*6,22*0,25"]
[null,null,"2,47*1,33*0,25",null,0.82130000000000003,null,null,null,null,null,null,null,"2,47*1,33*0,25"]
[null,null,"16,20*3,44*0,25",null,13.932,null,null,null,null,null,null,null,"16,20*3,44*0,25"]
[null,null,"(32,51-16,20)*3,44*0,15",null,8.4160000000000004,null,null,null,null,null,null,null,"(32,51-16,20)*3,44*0,15"]
[null,null,"6,07*2,64*0,15",null,2.4037000000000002,null,null,null,null,null,null,null,"6,07*2,64*0,15"]
[null,null,"9,62*13,38*0,27",null,34.7532,null,null,null,null,null,null,null,"9,62*13,38*0,27"]
[null,null,"9,62*72,37*0,15",null,104.4299,null,null,null,null,null,null,null,"9,62*72,37*0,15"]
[null,null,"Prostor před vjezov. vraty:11,50*2,10*0,20",null,4.83,null,null,null,null,null,null,null,"Prostor před vjezov. vraty:11,50*2,10*0,20"]
[null,"Celkem za",{"$f":"CONCATENATE(B40,\" \",C40)","v":"96 Bourání konstrukcí"},null,null,null,{"$f":"SUM(G40:G49)","v":0},null,null,null,null,null,null,null,4,null,null,null,null,null,null,null,null,null,null,null,null,null,null,null,null,null,null,null,null,null,null,null,null,null,null,null,null,null,null,null,null,null,null,null,null,null,{"$f":"SUM(BA40:BA49)","v":0},{"$f":"SUM(BB40:BB49)","v":0},{"$f":"SUM(BC40:BC49)","v":0},{"$f":"SUM(BD40:BD49)","v":0},{"$f":"SUM(BE40:BE49)","v":0}]
["Díl:","98","Demolice",null,null,null,null,null,null,null,null,null,null,null,1]
[11,"981011314R00","Demolice budov,zdivo,podíl kce.do 25%,MVC,post.roz ","m3",7215.8164999999999,null,{"$f":"E52*F52","v":0},null,null,null,null,null,null,null,2,null,null,null,null,null,null,null,null,null,null,null,1,1,1,null,null,null,null,null,null,null,null,null,null,null,null,null,null,null,null,null,null,null,null,null,null,1,{"$f":"IF(AZ52=1,G52,0)","v":0},{"$f":"IF(AZ52=2,G52,0)","v":0},{"$f":"IF(AZ52=3,G52,0)","v":0},{"$f":"IF(AZ52=4,G52,0)","v":0},{"$f":"IF(AZ52=5,G52,0)","v":0},null,null,null,null,null,null,null,null,null,null,null,null,null,null,null,null,null,null,null,null,null,1,1,null,null,null,null,null,null,null,null,null,null,null,null,null,null,null,null,null,null,null,null,null,null,null,8.9999999999999998E-4]
[null,null,"Položka je určena pro demolice budov postupným rozebíráním, výšky do 35 m, z cihel, kamene, smíšeného a hrázděného zdiva a z tvárnic na MV, MVC.",null,null,null,null,null,null,null,null,"Položka je určena pro demolice budov postupným rozebíráním, výšky do 35 m, z cihel, kamene, smíšeného a hrázděného zdiva a z tvárnic na MV, MVC.",null,null,3]
[null,null,"Množství jednotek se určuje v m3 obestavěného prostoru ve smyslu ČSN 73 4055.",null,null,null,null,null,null,null,null,"Množství jednotek se určuje v m3 obestavěného prostoru ve smyslu ČSN 73 4055.",null,null,3]
[null,null,"9,52*36,13*(5,40+9,21)/2",null,2512.6102999999998,null,null,null,null,null,null,null,"9,52*36,13*(5,40+9,21)/2"]
[null,null,"1,60*1,17*2,46",null,4.6051000000000002,null,null,null,null,null,null,null,"1,60*1,17*2,46"]
[null,null,"(6,07+7,65)*2,52/2",null,17.287199999999999,null,null,null,null,null,null,null,"(6,07+7,65)*2,52/2"]
[null,null,"6,07*2,64*7,92",null,126.9164,null,null,null,null,null,null,null,"6,07*2,64*7,92"]
[null,null,"11,20*3,48*(3,10+5,40)/2",null,165.648,null,null,null,null,null,null,null,"11,20*3,48*(3,10+5,40)/2"]
[null,null,"(32,51+2,47-11,20)*9,52*(5,40+9,21)/2",null,1653.7467999999999,null,null,null,null,null,null,null,"(32,51+2,47-11,20)*9,52*(5,40+9,21)/2"]
[null,null,"(32,51+2,47-11,20)*3,48*(3,10+5,40)/2",null,351.70620000000002,null,null,null,null,null,null,null,"(32,51+2,47-11,20)*3,48*(3,10+5,40)/2"]
[null,null,"(21,88+3,91)*9,59*(9,15+5,40)/2",null,1799.2973999999999,null,null,null,null,null,null,null,"(21,88+3,91)*9,59*(9,15+5,40)/2"]
[null,null,"21,88*6,20*(5,40+3,21)/2",null,583.9991,null,null,null,null,null,null,null,"21,88*6,20*(5,40+3,21)/2"]
[12,"981511113R00","Demolice konstr. postup. rozebráním, beton prostý ","m3",46.233499999999999,null,{"$f":"E64*F64","v":0},null,null,null,null,null,null,null,2,null,null,null,null,null,null,null,null,null,null,null,1,1,1,null,null,null,null,null,null,null,null,null,null,null,null,null,null,null,null,null,null,null,null,null,null,1,{"$f":"IF(AZ64=1,G64,0)","v":0},{"$f":"IF(AZ64=2,G64,0)","v":0},{"$f":"IF(AZ64=3,G64,0)","v":0},{"$f":"IF(AZ64=4,G64,0)","v":0},{"$f":"IF(AZ64=5,G64,0)","v":0},null,null,null,null,null,null,null,null,null,null,null,null,null,null,null,null,null,null,null,null,null,1,1,null,null,null,null,null,null,null,null,null,null,null,null,null,null,null,null,null,null,null,null,null,null,null,1.47E-3]
[null,null,"Základové konstrukce do úrovně stávajícího terénu v části objektu:23,165*0,75*1,05*2+7,41*0,92*1,43",null,46.233499999999999,null,null,null,null,null,null,null,"Základové konstrukce do úrovně stávajícího terénu v části objektu:23,165*0,75*1,05*2+7,41*0,92*1,43"]
[13,"981511114R00","Demolice konstrukcí postup.rozebráním, železobeton ","m3",19.667999999999999,null,{"$f":"E66*F66","v":0},null,null,null,null,null,null,null,2,null,null,null,null,null,null,null,null,null,null,null,1,1,1,null,null,null,null,null,null,null,null,null,null,null,null,null,null,null,null,null,null,null,null,null,null,1,{"$f":"IF(AZ66=1,G66,0)","v":0},{"$f":"IF(AZ66=2,G66,0)","v":0},{"$f":"IF(AZ66=3,G66,0)","v":0},{"$f":"IF(AZ66=4,G66,0)","v":0},{"$f":"IF(AZ66=5,G66,0)","v":0},null,null,null,null,null,null,null,null,null,null,null,null,null,null,null,null,null,null,null,null,null,1,1,null,null,null,null,null,null,null,null,null,null,null,null,null,null,null,null,null,null,null,null,null,null,null,1.31E-3]
[null,null,"Jímky a patky:1,70*1,70*1,05*4",null,12.138,null,null,null,null,null,null,null,"Jímky a patky:1,70*1,70*1,05*4"]
[null,null,"3,30*1,60*0,20*2+(3,30+1,00)*2*0,30*1,05*2",null,7.53,null,null,null,null,null,null,null,"3,30*1,60*0,20*2+(3,30+1,00)*2*0,30*1,05*2"]
[null,"Celkem za",{"$f":"CONCATENATE(B51,\" \",C51)","v":"98 Demolice"},null,null,null,{"$f":"SUM(G51:G68)","v":0},null,null,null,null,null,null,null,4,null,null,null,null,null,null,null,null,null,null,null,null,null,null,null,null,null,null,null,null,null,null,null,null,null,null,null,null,null,null,null,null,null,null,null,null,null,{"$f":"SUM(BA51:BA68)","v":0},{"$f":"SUM(BB51:BB68)","v":0},{"$f":"SUM(BC51:BC68)","v":0},{"$f":"SUM(BD51:BD68)","v":0},{"$f":"SUM(BE51:BE68)","v":0}]
["Díl:","99","Staveništní přesun hmot",null,null,null,null,null,null,null,null,null,null,null,1]
[14,"998222012R00","Přesun hmot, zpevněné plochy, kryt z kameniva ","t",429.64620000000002,null,{"$f":"E71*F71","v":0},null,null,null,null,null,null,null,2,null,null,null,null,null,null,null,null,null,null,null,1,1,1,null,null,null,null,null,null,null,null,null,null,null,null,null,null,null,null,null,null,null,null,null,null,1,{"$f":"IF(AZ71=1,G71,0)","v":0},{"$f":"IF(AZ71=2,G71,0)","v":0},{"$f":"IF(AZ71=3,G71,0)","v":0},{"$f":"IF(AZ71=4,G71,0)","v":0},{"$f":"IF(AZ71=5,G71,0)","v":0},null,null,null,null,null,null,null,null,null,null,null,null,null,null,null,null,null,null,null,null,null,1,1,null,null,null,null,null,null,null,null,null,null,null,null,null,null,null,null,null,null,null,null,null,null,null,0]
[15,"998981123R00","Přesun hmot demolice postup. rozebíráním v. do 21m ","t",6.5880000000000001,null,{"$f":"E72*F72","v":0},null,null,null,null,null,null,null,2,null,null,null,null,null,null,null,null,null,null,null,1,1,1,null,null,null,null,null,null,null,null,null,null,null,null,null,null,null,null,null,null,null,null,null,null,1,{"$f":"IF(AZ72=1,G72,0)","v":0},{"$f":"IF(AZ72=2,G72,0)","v":0},{"$f":"IF(AZ72=3,G72,0)","v":0},{"$f":"IF(AZ72=4,G72,0)","v":0},{"$f":"IF(AZ72=5,G72,0)","v":0},null,null,null,null,null,null,null,null,null,null,null,null,null,null,null,null,null,null,null,null,null,1,1,null,null,null,null,null,null,null,null,null,null,null,null,null,null,null,null,null,null,null,null,null,null,null,0]
[null,null,"Položka je určena pro přesun hmot pro demolice objektů prováděné postupným rozebíráním.",null,null,null,null,null,null,null,null,"Položka je určena pro přesun hmot pro demolice objektů prováděné postupným rozebíráním.",null,null,3]
[null,null,"Nejmenší skladovací plocha se nestanoví.",null,null,null,null,null,null,null,null,"Nejmenší skladovací plocha se nestanoví.",null,null,3]
[null,"Celkem za",{"$f":"CONCATENATE(B70,\" \",C70)","v":"99 Staveništní přesun hmot"},null,null,null,{"$f":"SUM(G70:G74)","v":0},null,null,null,null,null,null,null,4,null,null,null,null,null,null,null,null,null,null,null,null,null,null,null,null,null,null,null,null,null,null,null,null,null,null,null,null,null,null,null,null,null,null,null,null,null,{"$f":"SUM(BA70:BA74)","v":0},{"$f":"SUM(BB70:BB74)","v":0},{"$f":"SUM(BC70:BC74)","v":0},{"$f":"SUM(BD70:BD74)","v":0},{"$f":"SUM(BE70:BE74)","v":0}]
["Díl:","766","Konstrukce truhlářské",null,null,null,null,null,null,null,null,null,null,null,1]
[16,"766321811RRR","Demontáž azbestocem.čtverců na laťování, do suti ","m2",627.77869999999996,null,{"$f":"E77*F77","v":0},null,null,null,null,null,null,null,2,null,null,null,null,null,null,null,null,null,null,null,1,0,0,null,null,null,null,null,null,null,null,null,null,null,null,null,null,null,null,null,null,null,null,null,null,2,{"$f":"IF(AZ77=1,G77,0)","v":0},{"$f":"IF(AZ77=2,G77,0)","v":0},{"$f":"IF(AZ77=3,G77,0)","v":0},{"$f":"IF(AZ77=4,G77,0)","v":0},{"$f":"IF(AZ77=5,G77,0)","v":0},null,null,null,null,null,null,null,null,null,null,null,null,null,null,null,null,null,null,null,null,null,1,0,null,null,null,null,null,null,null,null,null,null,null,null,null,null,null,null,null,null,null,null,null,null,null,0]
[null,null,"V ceně započteny i náklady na ochranné pomůcky ( respirátory, ochranné obleky, speciální obaly, pásky a nálepky určené k likvidaci materiálu s obsahem azbestu, zvlhčující přípravek pro fixování a stabilizaci azbestových vláken ).",null,null,null,null,null,null,null,null,"V ceně započteny i náklady na ochranné pomůcky ( respirátory, ochranné obleky, speciální obaly, pásky a nálepky určené k likvidaci materiálu s obsahem azbestu, zvlhčující přípravek pro fixování a stabilizaci azbestových vláken ).",null,null,3]
[null,null,"Vnejší obklady soklů:15,82*(1,95+0,64)/2",null,20.486899999999999,null,null,null,null,null,null,null,"Vnejší obklady soklů:15,82*(1,95+0,64)/2"]
[null,null,"(7,63+5,61)*1,45",null,19.198,null,null,null,null,null,null,null,"(7,63+5,61)*1,45"]
[null,null,"16,69*1,25",null,20.862500000000001,null,null,null,null,null,null,null,"16,69*1,25"]
[null,null,"(19,16-1,54)*(0,49+1,14)/2",null,14.360300000000001,null,null,null,null,null,null,null,"(19,16-1,54)*(0,49+1,14)/2"]
[null,null,"Podkroví - obklad krovu:40,58*10,00",null,405.8,null,null,null,null,null,null,null,"Podkroví - obklad krovu:40,58*10,00"]
[null,null,"Podkroví - obklad příček:2,32*(2,65+1,25)/2*7*2",null,63.335999999999999,null,null,null,null,null,null,null,"Podkroví - obklad příček:2,32*(2,65+1,25)/2*7*2"]
[null,null,"(1,54*2+1,37*2+2,46+2,10)*2,65",null,27.507000000000001,null,null,null,null,null,null,null,"(1,54*2+1,37*2+2,46+2,10)*2,65"]
[null,null,"(11,74+2,10+1,08+4,10+8,34)*2,65",null,72.504000000000005,null,null,null,null,null,null,null,"(11,74+2,10+1,08+4,10+8,34)*2,65"]
[null,null,"-1,26*2,10*2",null,-5.2919999999999998,null,null,null,null,null,null,null,"-1,26*2,10*2"]
[null,null,"-0,64*0,50*2",null,-0.64,null,null,null,null,null,null,null,"-0,64*0,50*2"]
[null,null,"-0,90*1,15*2",null,-2.0699999999999998,null,null,null,null,null,null,null,"-0,90*1,15*2"]
[null,null,"-0,90*1,97*2",null,-3.5459999999999998,null,null,null,null,null,null,null,"-0,90*1,97*2"]
[null,null,"-0,60*1,97*2*2",null,-4.7279999999999998,null,null,null,null,null,null,null,"-0,60*1,97*2*2"]
[17,"766411822R00","Demontáž podkladových roštů obložení stěn ","m2",74.907700000000006,null,{"$f":"E92*F92","v":0},null,null,null,null,null,null,null,2,null,null,null,null,null,null,null,null,null,null,null,1,7,7,null,null,null,null,null,null,null,null,null,null,null,null,null,null,null,null,null,null,null,null,null,null,2,{"$f":"IF(AZ92=1,G92,0)","v":0},{"$f":"IF(AZ92=2,G92,0)","v":0},{"$f":"IF(AZ92=3,G92,0)","v":0},{"$f":"IF(AZ92=4,G92,0)","v":0},{"$f":"IF(AZ92=5,G92,0)","v":0},null,null,null,null,null,null,null,null,null,null,null,null,null,null,null,null,null,null,null,null,null,1,7,null,null,null,null,null,null,null,null,null,null,null,null,null,null,null,null,null,null,null,null,null,null,null,0]
[null,null,"Vnejší obklady soklů:15,82*(1,95+0,64)/2",null,20.486899999999999,null,null,null,null,null,null,null,"Vnejší obklady soklů:15,82*(1,95+0,64)/2"]
[null,null,"(7,63+5,61)*1,45",null,19.198,null,null,null,null,null,null,null,"(7,63+5,61)*1,45"]
[null,null,"16,69*1,25",null,20.862500000000001,null,null,null,null,null,null,null,"16,69*1,25"]
[null,null,"(19,16-1,54)*(0,49+1,14)/2",null,14.360300000000001,null,null,null,null,null,null,null,"(19,16-1,54)*(0,49+1,14)/2"]
[18,"766990001RRR","Vytvoření kontrolovaného pásma ","soubor",3,null,{"$f":"E97*F97","v":0},null,null,null,null,null,null,null,2,null,null,null,null,null,null,null,null,null,null,null,1,0,0,null,null,null,null,null,null,null,null,null,null,null,null,null,null,null,null,null,null,null,null,null,null,2,{"$f":"IF(AZ97=1,G97,0)","v":0},{"$f":"IF(AZ97=2,G97,0)","v":0},{"$f":"IF(AZ97=3,G97,0)","v":0},{"$f":"IF(AZ97=4,G97,0)","v":0},{"$f":"IF(AZ97=5,G97,0)","v":0},null,null,null,null,null,null,null,null,null,null,null,null,null,null,null,null,null,null,null,null,null,1,0,null,null,null,null,null,null,null,null,null,null,null,null,null,null,null,null,null,null,null,null,null,null,null,0]
[null,null,"Položka obsahuje celý rozsah kontrolovaného pásma k provedení demontáže deskových prvků s obsahem azbestových vláken v rozsahu daném projektovou dokumentací.",null,null,null,null,null,null,null,null,"Položka obsahuje celý rozsah kontrolovaného pásma k provedení demontáže deskových prvků s obsahem azbestových vláken v rozsahu daném projektovou dokumentací.",null,null,3]
[null,null,"Podkorví:1",null,1,null,null,null,null,null,null,null,"Podkorví:1"]
[null,null,"Venkolní obklad soklu - levá strana:1",null,1,null,null,null,null,null,null,null,"Venkolní obklad soklu - levá strana:1"]
[null,null,"Venkolní obklad soklu - pravá strana:1",null,1,null,null,null,null,null,null,null,"Venkolní obklad soklu - pravá strana:1"]
[19,"766990002RRR","Vytvoření podtlaku odsávacím zařízením s HEPA filtrací H12 pro vnitřní prostor v podkroví","soubor",1,null,{"$f":"E102*F102","v":0},null,null,null,null,null,null,null,2,null,null,null,null,null,null,null,null,null,null,null,1,0,0,null,null,null,null,null,null,null,null,null,null,null,null,null,null,null,null,null,null,null,null,null,null,2,{"$f":"IF(AZ102=1,G102,0)","v":0},{"$f":"IF(AZ102=2,G102,0)","v":0},{"$f":"IF(AZ102=3,G102,0)","v":0},{"$f":"IF(AZ102=4,G102,0)","v":0},{"$f":"IF(AZ102=5,G102,0)","v":0},null,null,null,null,null,null,null,null,null,null,null,null,null,null,null,null,null,null,null,null,null,1,0,null,null,null,null,null,null,null,null,null,null,null,null,null,null,null,null,null,null,null,null,null,null,null,0]
[null,null,"Položka obsahuje výkon zařízení, který je potřebný k vytvoření dostatečného podtlaku a výměny vzduchu v prostoru celého vnitřního kontrolovaného pásma dle projektové dokumentace.",null,null,null,null,null,null,null,null,"Položka obsahuje výkon zařízení, který je potřebný k vytvoření dostatečného podtlaku a výměny vzduchu v prostoru celého vnitřního kontrolovaného pásma dle projektové dokumentace.",null,null,3]
[null,null,"Podkorví:1",null,1,null,null,null,null,null,null,null,"Podkorví:1"]
[20,"766990003RRR","Vytvoření podtlaku odsávacím zařízením s HEPA filtrací H12 pro venkovní prostor","soubor",2,null,{"$f":"E105*F105","v":0},null,null,null,null,null,null,null,2,null,null,null,null,null,null,null,null,null,null,null,1,0,0,null,null,null,null,null,null,null,null,null,null,null,null,null,null,null,null,null,null,null,null,null,null,2,{"$f":"IF(AZ105=1,G105,0)","v":0},{"$f":"IF(AZ105=2,G105,0)","v":0},{"$f":"IF(AZ105=3,G105,0)","v":0},{"$f":"IF(AZ105=4,G105,0)","v":0},{"$f":"IF(AZ105=5,G105,0)","v":0},null,null,null,null,null,null,null,null,null,null,null,null,null,null,null,null,null,null,null,null,null,1,0,null,null,null,null,null,null,null,null,null,null,null,null,null,null,null,null,null,null,null,null,null,null,null,0]
[null,null,"Položka obsahuje výkon zařízení, který je potřebný k vytvoření dostatečného podtlaku a výměny vzduchu v prostoru celého venkovního kontrolovaného pásma dle projektové dokumentace.",null,null,null,null,null,null,null,null,"Položka obsahuje výkon zařízení, který je potřebný k vytvoření dostatečného podtlaku a výměny vzduchu v prostoru celého venkovního kontrolovaného pásma dle projektové dokumentace.",null,null,3]
[null,null,"Venkolní obklad soklu - levá strana:1",null,1,null,null,null,null,null,null,null,"Venkolní obklad soklu - levá strana:1"]
[null,null,"Venkolní obklad soklu - pravá strana:1",null,1,null,null,null,null,null,null,null,"Venkolní obklad soklu - pravá strana:1"]
[21,"766990004RRR","Monitoring podtlaku v průběhu realizace prací ","soubor",3,null,{"$f":"E109*F109","v":0},null,null,null,null,null,null,null,2,null,null,null,null,null,null,null,null,null,null,null,1,0,0,null,null,null,null,null,null,null,null,null,null,null,null,null,null,null,null,null,null,null,null,null,null,2,{"$f":"IF(AZ109=1,G109,0)","v":0},{"$f":"IF(AZ109=2,G109,0)","v":0},{"$f":"IF(AZ109=3,G109,0)","v":0},{"$f":"IF(AZ109=4,G109,0)","v":0},{"$f":"IF(AZ109=5,G109,0)","v":0},null,null,null,null,null,null,null,null,null,null,null,null,null,null,null,null,null,null,null,null,null,1,0,null,null,null,null,null,null,null,null,null,null,null,null,null,null,null,null,null,null,null,null,null,null,null,0]
[null,null,"Podkorví:1",null,1,null,null,null,null,null,null,null,"Podkorví:1"]
[null,null,"Venkolní obklad soklu - levá strana:1",null,1,null,null,null,null,null,null,null,"Venkolní obklad soklu - levá strana:1"]
[null,null,"Venkolní obklad soklu - pravá strana:1",null,1,null,null,null,null,null,null,null,"Venkolní obklad soklu - pravá strana:1"]
[22,"766990005RRR","Vybudování a provoz personální a dekontaminační komory","soubor",1,null,{"$f":"E113*F113","v":0},null,null,null,null,null,null,null,2,null,null,null,null,null,null,null,null,null,null,null,1,0,0,null,null,null,null,null,null,null,null,null,null,null,null,null,null,null,null,null,null,null,null,null,null,2,{"$f":"IF(AZ113=1,G113,0)","v":0},{"$f":"IF(AZ113=2,G113,0)","v":0},{"$f":"IF(AZ113=3,G113,0)","v":0},{"$f":"IF(AZ113=4,G113,0)","v":0},{"$f":"IF(AZ113=5,G113,0)","v":0},null,null,null,null,null,null,null,null,null,null,null,null,null,null,null,null,null,null,null,null,null,1,0,null,null,null,null,null,null,null,null,null,null,null,null,null,null,null,null,null,null,null,null,null,null,null,0]
[null,null,"Položka obsahuje vybudování a provoz personální a dekontaminační komory dle podmínek hygienických norem pro daný rozsah prací n nebezpečných odpadem.",null,null,null,null,null,null,null,null,"Položka obsahuje vybudování a provoz personální a dekontaminační komory dle podmínek hygienických norem pro daný rozsah prací n nebezpečných odpadem.",null,null,3]
[23,"766990006RRR","Demontáž technických opatření vč. odvozu technolog ","soubor",1,null,{"$f":"E115*F115","v":0},null,null,null,null,null,null,null,2,null,null,null,null,null,null,null,null,null,null,null,1,0,0,null,null,null,null,null,null,null,null,null,null,null,null,null,null,null,null,null,null,null,null,null,null,2,{"$f":"IF(AZ115=1,G115,0)","v":0},{"$f":"IF(AZ115=2,G115,0)","v":0},{"$f":"IF(AZ115=3,G115,0)","v":0},{"$f":"IF(AZ115=4,G115,0)","v":0},{"$f":"IF(AZ115=5,G115,0)","v":0},null,null,null,null,null,null,null,null,null,null,null,null,null,null,null,null,null,null,null,null,null,1,0,null,null,null,null,null,null,null,null,null,null,null,null,null,null,null,null,null,null,null,null,null,null,null,0]
[24,"766990007RRR","Závěrečný monitoring dle ČSN ISO EN 16000-7 ","soubor",3,null,{"$f":"E116*F116","v":0},null,null,null,null,null,null,null,2,null,null,null,null,null,null,null,null,null,null,null,1,0,0,null,null,null,null,null,null,null,null,null,null,null,null,null,null,null,null,null,null,null,null,null,null,2,{"$f":"IF(AZ116=1,G116,0)","v":0},{"$f":"IF(AZ116=2,G116,0)","v":0},{"$f":"IF(AZ116=3,G116,0)","v":0},{"$f":"IF(AZ116=4,G116,0)","v":0},{"$f":"IF(AZ116=5,G116,0)","v":0},null,null,null,null,null,null,null,null,null,null,null,null,null,null,null,null,null,null,null,null,null,1,0,null,null,null,null,null,null,null,null,null,null,null,null,null,null,null,null,null,null,null,null,null,null,null,0]
[null,null,"V položče jsou zahrnuta závěrečná měření početní koncentrace v souladu s výše uvedenou normou a dle rozsahu v projektové dokumentaci",null,null,null,null,null,null,null,null,"V položče jsou zahrnuta závěrečná měření početní koncentrace v souladu s výše uvedenou normou a dle rozsahu v projektové dokumentaci",null,null,3]
[null,null,"Podkorví:1",null,1,null,null,null,null,null,null,null,"Podkorví:1"]
[null,null,"Venkolní obklad soklu - levá strana:1",null,1,null,null,null,null,null,null,null,"Venkolní obklad soklu - levá strana:1"]
[null,null,"Venkolní obklad soklu - pravá strana:1",null,1,null,null,null,null,null,null,null,"Venkolní obklad soklu - pravá strana:1"]
[25,"979083117RRR","Vodorovné přemístění NO na skládku do 20000 m ","t",15.6945,null,{"$f":"E121*F121","v":0},null,null,null,null,null,null,null,2,null,null,null,null,null,null,null,null,null,null,null,1,10,10,null,null,null,null,null,null,null,null,null,null,null,null,null,null,null,null,null,null,null,null,null,null,2,{"$f":"IF(AZ121=1,G121,0)","v":0},{"$f":"IF(AZ121=2,G121,0)","v":0},{"$f":"IF(AZ121=3,G121,0)","v":0},{"$f":"IF(AZ121=4,G121,0)","v":0},{"$f":"IF(AZ121=5,G121,0)","v":0},null,null,null,null,null,null,null,null,null,null,null,null,null,null,null,null,null,null,null,null,null,1,10,null,null,null,null,null,null,null,null,null,null,null,null,null,null,null,null,null,null,null,null,null,null,null,0]
[26,"979086112RRR","Nakládání a překládání NO ","t",15.6945,null,{"$f":"E122*F122","v":0},null,null,null,null,null,null,null,2,null,null,null,null,null,null,null,null,null,null,null,1,10,10,null,null,null,null,null,null,null,null,null,null,null,null,null,null,null,null,null,null,null,null,null,null,2,{"$f":"IF(AZ122=1,G122,0)","v":0},{"$f":"IF(AZ122=2,G122,0)","v":0},{"$f":"IF(AZ122=3,G122,0)","v":0},{"$f":"IF(AZ122=4,G122,0)","v":0},{"$f":"IF(AZ122=5,G122,0)","v":0},null,null,null,null,null,null,null,null,null,null,null,null,null,null,null,null,null,null,null,null,null,1,10,null,null,null,null,null,null,null,null,null,null,null,null,null,null,null,null,null,null,null,null,null,null,null,0]
[27,"979990201R00","Poplatek za skládku suti -azbestocementové výrobky (nebezpečný odpad NO)","t",15.6945,null,{"$f":"E123*F123","v":0},null,null,null,null,null,null,null,2,null,null,null,null,null,null,null,null,null,null,null,1,10,10,null,null,null,null,null,null,null,null,null,null,null,null,null,null,null,null,null,null,null,null,null,null,2,{"$f":"IF(AZ123=1,G123,0)","v":0},{"$f":"IF(AZ123=2,G123,0)","v":0},{"$f":"IF(AZ123=3,G123,0)","v":0},{"$f":"IF(AZ123=4,G123,0)","v":0},{"$f":"IF(AZ123=5,G123,0)","v":0},null,null,null,null,null,null,null,null,null,null,null,null,null,null,null,null,null,null,null,null,null,1,10,null,null,null,null,null,null,null,null,null,null,null,null,null,null,null,null,null,null,null,null,null,null,null,0]
[null,"Celkem za",{"$f":"CONCATENATE(B76,\" \",C76)","v":"766 Konstrukce truhlářské"},null,null,null,{"$f":"SUM(G76:G123)","v":0},null,null,null,null,null,null,null,4,null,null,null,null,null,null,null,null,null,null,null,null,null,null,null,null,null,null,null,null,null,null,null,null,null,null,null,null,null,null,null,null,null,null,null,null,null,{"$f":"SUM(BA76:BA123)","v":0},{"$f":"SUM(BB76:BB123)","v":0},{"$f":"SUM(BC76:BC123)","v":0},{"$f":"SUM(BD76:BD123)","v":0},{"$f":"SUM(BE76:BE123)","v":0}]
["Díl:","D96","Přesuny suti a vybouraných hmot",null,null,null,null,null,null,null,null,null,null,null,1]
[28,"979083117R00","Vodorovné přemístění suti na skládku do 6000 m ","t",3868.7876640999998,null,{"$f":"E126*F126","v":0},null,null,null,null,null,null,null,2,null,null,null,null,null,null,null,null,null,null,null,8,0,3,null,null,null,null,null,null,null,null,null,null,null,null,null,null,null,null,null,null,null,null,null,null,1,{"$f":"IF(AZ126=1,G126,0)","v":0},{"$f":"IF(AZ126=2,G126,0)","v":0},{"$f":"IF(AZ126=3,G126,0)","v":0},{"$f":"IF(AZ126=4,G126,0)","v":0},{"$f":"IF(AZ126=5,G126,0)","v":0},null,null,null,null,null,null,null,null,null,null,null,null,null,null,null,null,null,null,null,null,null,8,0,null,null,null,null,null,null,null,null,null,null,null,null,null,null,null,null,null,null,null,null,null,null,null,0]
[29,"979083191R00","Příplatek za dalších započatých 1000 m nad 6000 m ","t",58031.8149615,null,{"$f":"E127*F127","v":0},null,null,null,null,null,null,null,2,null,null,null,null,null,null,null,null,null,null,null,8,0,3,null,null,null,null,null,null,null,null,null,null,null,null,null,null,null,null,null,null,null,null,null,null,1,{"$f":"IF(AZ127=1,G127,0)","v":0},{"$f":"IF(AZ127=2,G127,0)","v":0},{"$f":"IF(AZ127=3,G127,0)","v":0},{"$f":"IF(AZ127=4,G127,0)","v":0},{"$f":"IF(AZ127=5,G127,0)","v":0},null,null,null,null,null,null,null,null,null,null,null,null,null,null,null,null,null,null,null,null,null,8,0,null,null,null,null,null,null,null,null,null,null,null,null,null,null,null,null,null,null,null,null,null,null,null,0]
[30,"979086112R00","Nakládání nebo překládání suti a vybouraných hmot ","t",3868.7876640999998,null,{"$f":"E128*F128","v":0},null,null,null,null,null,null,null,2,null,null,null,null,null,null,null,null,null,null,null,8,0,3,null,null,null,null,null,null,null,null,null,null,null,null,null,null,null,null,null,null,null,null,null,null,1,{"$f":"IF(AZ128=1,G128,0)","v":0},{"$f":"IF(AZ128=2,G128,0)","v":0},{"$f":"IF(AZ128=3,G128,0)","v":0},{"$f":"IF(AZ128=4,G128,0)","v":0},{"$f":"IF(AZ128=5,G128,0)","v":0},null,null,null,null,null,null,null,null,null,null,null,null,null,null,null,null,null,null,null,null,null,8,0,null,null,null,null,null,null,null,null,null,null,null,null,null,null,null,null,null,null,null,null,null,null,null,0]
[31,"979093111R00","Uložení suti na skládku bez zhutnění ","t",3868.7876640999998,null,{"$f":"E129*F129","v":0},null,null,null,null,null,null,null,2,null,null,null,null,null,null,null,null,null,null,null,8,0,3,null,null,null,null,null,null,null,null,null,null,null,null,null,null,null,null,null,null,null,null,null,null,1,{"$f":"IF(AZ129=1,G129,0)","v":0},{"$f":"IF(AZ129=2,G129,0)","v":0},{"$f":"IF(AZ129=3,G129,0)","v":0},{"$f":"IF(AZ129=4,G129,0)","v":0},{"$f":"IF(AZ129=5,G129,0)","v":0},null,null,null,null,null,null,null,null,null,null,null,null,null,null,null,null,null,null,null,null,null,8,0,null,null,null,null,null,null,null,null,null,null,null,null,null,null,null,null,null,null,null,null,null,null,null,0]
[32,"979990107R00","Poplatek za skládku suti - směs betonu,cihel,dřeva ","t",3868.7876640999998,null,{"$f":"E130*F130","v":0},null,null,null,null,null,null,null,2,null,null,null,null,null,null,null,null,null,null,null,8,0,3,null,null,null,null,null,null,null,null,null,null,null,null,null,null,null,null,null,null,null,null,null,null,1,{"$f":"IF(AZ130=1,G130,0)","v":0},{"$f":"IF(AZ130=2,G130,0)","v":0},{"$f":"IF(AZ130=3,G130,0)","v":0},{"$f":"IF(AZ130=4,G130,0)","v":0},{"$f":"IF(AZ130=5,G130,0)","v":0},null,null,null,null,null,null,null,null,null,null,null,null,null,null,null,null,null,null,null,null,null,8,0,null,null,null,null,null,null,null,null,null,null,null,null,null,null,null,null,null,null,null,null,null,null,null,0]
[null,"Celkem za",{"$f":"CONCATENATE(B125,\" \",C125)","v":"D96 Přesuny suti a vybouraných hmot"},null,null,null,{"$f":"SUM(G125:G130)","v":0},null,null,null,null,null,null,null,4,null,null,null,null,null,null,null,null,null,null,null,null,null,null,null,null,null,null,null,null,null,null,null,null,null,null,null,null,null,null,null,null,null,null,null,null,null,{"$f":"SUM(BA125:BA130)","v":0},{"$f":"SUM(BB125:BB130)","v":0},{"$f":"SUM(BC125:BC130)","v":0},{"$f":"SUM(BD125:BD130)","v":0},{"$f":"SUM(BE125:BE130)","v":0}]